bitfinex/quotes_SOLUSD_20241214
["timestamp","ask_amount","ask_price","bid_price","bid_amount"]
[1734187173326,20.5226071,222.23,222.1,8.0002]
[1734187173526,20.0,222.22,222.1,8.0002]
[1734187174850,20.0,222.22,222.11,8.58111875]
[1734187175141,20.5226071,222.23,222.11,8.58111875]
[1734187176845,20.5226071,222.23,222.1,17.25649171]
[1734187177047,20.5226071,222.23,222.1,16.58131875]
[1734187178329,0.5226071,222.23,222.1,16.58131875]
[1734187179341,20.5226071,222.23,222.1,16.58131875]
[1734187180936,0.5226071,222.23,222.1,16.58131875]
[1734187181146,0.5226071,222.23,222.11,8.58111875]
[1734187182953,0.5226071,222.23,222.1,16.58131875]
[1734187183163,20.5226071,222.23,222.1,16.58131875]
[1734187184545,0.5226071,222.23,222.11,8.58111875]
[1734187185268,0.5226071,222.23,222.12,0.25098]
[1734187185438,0.5226071,222.23,222.13,8.58111875]
[1734187185940,0.5226071,222.23,222.12,9.50724515]
[1734187186354,0.5226071,222.23,222.12,8.83209875]
[1734187186959,0.5226071,222.23,222.12,0.25098]
[1734187187934,20.0,222.22,222.1,16.58131875]
[1734187188768,20.0,222.22,222.11,8.58111875]
[1734187189252,20.0,222.22,222.1,16.58131875]
[1734187192657,20.0,222.22,222.1,8.0002]
[1734187194261,20.0,222.21,222.1,8.0002]
[1734187194973,20.0,222.2,222.1,8.0002]
[1734187197555,20.0,222.2,222.11,8.58111875]
[1734187197862,20.0,222.21,222.11,8.58111875]
[1734187198746,20.0,222.22,222.11,8.58111875]
[1734187202864,20.0,222.22,222.1,16.58131875]
[1734187203671,20.0,222.22,222.1,8.0002]
[1734187207570,20.0,222.17,222.04,7.8344]
[1734187207882,20.0,222.13,222.04,7.8344]
[1734187208049,20.0,222.13,221.97,7.8344]
[1734187208368,20.0,222.08,221.97,7.8344]
[1734187208754,24.027864,222.11,221.97,7.8344]
[1734187208755,20.0,222.04,221.97,7.8344]
[1734187208950,20.0,222.04,221.91,7.8344]
[1734187210868,23.902374,222.03,221.91,7.8344]
[1734187211165,20.0,222.0,221.91,7.8344]
[1734187216681,20.0,222.01,221.91,7.8344]
[1734187218357,20.0,222.07,221.92,24.027864]
[1734187218685,2.72653329,222.09,221.94,0.25098]
[1734187218856,1.5238,222.14,221.95,8.70660875]
[1734187219057,1.5238,222.14,221.97,0.25098]
[1734187219258,1.5238,222.14,221.97,8.83209875]
[1734187219601,2.67513786,222.12,221.97,8.83209875]
[1734187220091,2.67513786,222.12,221.97,0.25098]
[1734187220293,0.12549,222.11,221.94,8.58111875]
[1734187220669,24.027864,222.11,221.95,23.776884]
[1734187221173,24.027864,222.11,221.96,0.25098]
[1734187221174,20.0,222.11,221.96,0.25098]
[1734187221571,20.0,222.11,221.96,24.027864]
[1734187222183,20.0,222.11,221.96,0.12549]
[1734187224377,20.0,222.07,221.91,7.8344]
[1734187224579,20.0,222.07,221.92,23.902374]
[1734187225698,20.12549,222.11,221.93,0.12549]
[1734187225995,20.0,222.07,221.91,7.8344]
[1734187226498,0.12549,222.06,221.91,7.8344]
[1734187227094,20.0,222.07,221.92,0.12549]
[1734187227776,20.0,222.07,221.92,23.902374]
[1734187229395,20.0,222.09,221.92,23.902374]
[1734187229775,0.12549,222.08,221.92,23.902374]
[1734187231596,20.0,222.07,221.92,23.902374]
[1734187239306,20.0,222.07,221.92,23.776884]
[1734187239307,0.12549,222.06,221.92,23.776884]
[1734187240910,0.12549,222.06,221.91,7.8344]
[1734187241109,0.25098,222.06,221.91,7.8344]
[1734187244087,0.12549,222.06,221.92,23.776884]
[1734187246593,0.25098,222.06,221.92,23.776884]
[1734187246916,0.12549,222.04,221.91,7.8344]
[1734187249835,0.12549,222.0,221.86,7.9857]
[1734187251001,20.0,221.97,221.86,7.9857]
[1734187252230,20.0,221.97,221.81,1.6319]
[1734187252231,0.12549,221.96,221.81,1.6319]
[1734187252524,20.12549,221.96,221.81,1.6319]
[1734187253414,20.0,221.96,221.82,8.70660875]
[1734187254214,4.43916572,222.04,221.86,23.776884]
[1734187254215,20.0,222.02,221.86,23.776884]
[1734187254424,21.82308942,222.02,221.86,23.776884]
[1734187254607,21.82308942,222.02,221.85,23.902374]
[1734187254929,21.82308942,222.02,221.85,32.48349275]
[1734187254930,0.12549,222.01,221.85,32.48349275]
[1734187255125,21.82308942,222.02,221.86,0.12549]
[1734187255813,21.82308942,222.02,221.85,32.48349275]
[1734187256033,0.12549,222.01,221.85,32.48349275]
[1734187256327,0.12549,222.01,221.85,0.12549]
[1734187258442,20.12549,222.01,221.85,0.12549]
[1734187259630,20.0,222.0,221.87,0.12549]
[1734187261133,20.0,222.0,221.86,0.12549]
[1734187262007,20.0,222.0,221.84,24.027864]
[1734187262622,20.0,222.0,221.86,0.12549]
[1734187263833,20.0,222.0,221.88,0.12549]
[1734187264035,20.0,222.01,221.9,23.902374]
[1734187264626,20.0,222.01,221.89,23.902374]
[1734187266058,20.0,222.01,221.87,23.902374]
[1734187266534,20.0,222.01,221.86,23.902374]
[1734187267151,20.0,222.01,221.85,0.25098]
[1734187268122,0.12549,222.0,221.85,0.12549]
[1734187268553,1.6311,221.99,221.85,0.12549]
[1734187269424,1.6311,221.99,221.87,24.027864]
[1734187269762,1.6311,222.04,221.92,23.902374]
[1734187270949,1.6311,222.04,221.91,8.58111875]
[1734187270950,1.6311,222.04,221.91,23.776884]
[1734187271136,1.6311,222.04,221.9,0.12549]
[1734187271137,20.0,222.02,221.9,0.12549]
[1734187272146,0.12549,222.01,221.85,1.5458]
[1734187272331,20.25098,222.01,221.82,6.3936]
[1734187272529,20.12549,221.99,221.82,6.3936]
[1734187272750,6.0301,221.97,221.82,6.3936]
[1734187273068,20.0,221.94,221.82,6.3936]
[1734187273424,20.0,221.94,221.83,0.12549]
[1734187274139,20.0,221.94,221.84,0.12549]
[1734187275957,20.0,221.94,221.85,8.70660875]
[1734187276135,20.0,221.94,221.86,23.902374]
[1734187277060,6.0301,221.97,221.87,23.776884]
[1734187277363,6.0301,221.97,221.86,0.12549]
[1734187277556,6.0301,221.97,221.86,23.902374]
[1734187278152,6.0301,221.97,221.85,0.12549]
[1734187279146,6.0301,221.97,221.84,0.12549]
[1734187279484,20.0,221.94,221.84,0.12549]
[1734187282257,20.0,221.94,221.84,8.70660875]
[1734187282570,20.0,221.94,221.85,23.776884]
[1734187283061,20.0,221.94,221.86,0.12549]
[1734187283598,6.0301,221.97,221.86,0.25098]
[1734187284549,6.0301,221.97,221.87,23.776884]
[1734187284755,6.0301,221.97,221.88,0.12549]
[1734187285766,6.0301,221.97,221.87,0.12549]
[1734187286281,6.0301,221.97,221.86,0.12549]
[1734187287759,6.0301,221.97,221.86,8.83209875]
[1734187288170,6.0301,221.97,221.88,0.12549]
[1734187289085,6.0301,221.97,221.87,0.12549]
[1734187290865,20.0,221.98,221.87,0.12549]
[1734187291071,1.6311,222.0,221.91,23.902374]
[1734187291273,1.6311,222.0,221.91,32.48349275]
[1734187291687,1.6311,222.0,221.91,23.902374]
[1734187293070,1.6311,222.0,221.91,32.48349275]
[1734187294184,1.6311,222.0,221.91,23.902374]
[1734187294580,1.6311,222.0,221.9,24.027864]
[1734187295594,1.6311,222.0,221.9,0.12549]
[1734187296692,1.6311,222.0,221.89,23.776884]
[1734187296997,1.6311,222.0,221.84,8.58111875]
[1734187296998,20.0,221.98,221.84,0.12549]
[1734187297367,20.0,221.98,221.83,9.25698972]
[1734187297561,20.0,221.98,221.84,8.58111875]
[1734187297790,20.0,221.98,221.85,0.12549]
[1734187297992,20.0,221.97,221.85,0.12549]
[1734187298489,20.0,221.97,221.86,8.58111875]
[1734187298672,20.0,221.98,221.87,23.902374]
[1734187299994,20.0,221.98,221.87,0.12549]
[1734187300375,20.0,221.97,221.87,0.12549]
[1734187300569,20.0,221.97,221.85,23.902374]
[1734187300969,20.0,221.97,221.8,1.5458]
[1734187301292,20.0,221.96,221.83,8.58111875]
[1734187301488,20.0,221.96,221.84,8.58111875]
[1734187302193,20.0,221.96,221.85,23.902374]
[1734187302692,20.0,221.96,221.84,0.12549]
[1734187302898,20.0,221.93,221.8,1.5458]
[1734187303092,20.0,221.93,221.81,20.0]
[1734187304294,20.0,221.93,221.82,23.902374]
[1734187305297,20.0,221.93,221.82,32.48349275]
[1734187306689,20.0,221.93,221.82,23.902374]
[1734187307882,20.0,221.93,221.82,32.48349275]
[1734187308387,6.6507,221.96,221.86,8.58111875]
[1734187308702,6.6507,221.96,221.87,23.776884]
[1734187308887,8.6831868,222.0,221.88,8.70660875]
[1734187309081,8.6831868,222.0,221.9,0.12549]
[1734187309300,1.6311,222.0,221.9,0.12549]
[1734187314899,1.6311,222.0,221.91,23.776884]
[1734187315102,8.6965868,222.05,221.92,8.70660875]
[1734187315304,1.6445,222.05,221.94,23.902374]
[1734187315686,1.6445,222.05,221.94,8.70660875]
[1734187316084,1.6445,222.05,221.95,23.776884]
[1734187316703,1.6445,222.05,221.94,23.902374]
[1734187317499,1.6445,222.05,221.95,0.12549]
[1734187320715,1.6445,222.05,221.96,23.902374]
[1734187323004,1.6445,222.05,221.97,0.12549]
[1734187323205,20.0,222.08,221.98,23.902374]
[1734187324215,20.0,222.08,222.0,23.902374]
[1734187324589,20.0,222.08,222.0,0.12549]
[1734187325215,20.0,222.08,221.99,0.12549]
[1734187326120,20.0,222.08,221.98,23.902374]
[1734187326407,20.0,222.08,221.98,0.12549]
[1734187326918,20.0,222.08,221.97,0.25098]
[1734187327105,20.0,222.08,221.97,0.12549]
[1734187327311,20.0,222.08,221.95,23.902374]
[1734187327629,20.0,222.08,221.95,0.12549]
[1734187328314,20.0,222.08,221.95,0.25098]
[1734187329709,20.0,222.08,221.93,9.25661608]
[1734187330216,20.0,222.08,221.93,0.67549733]
[1734187330441,20.0,222.04,221.88,10.19361875]
[1734187330734,20.0,222.04,221.86,6.5355]
[1734187330735,1.5731,222.03,221.87,8.58111875]
[1734187331096,1.5731,222.03,221.88,0.12549]
[1734187332013,20.0,221.99,221.88,0.12549]
[1734187332207,20.0,221.99,221.86,8.58111875]
[1734187333115,20.0,221.99,221.87,0.12549]
[1734187333694,20.0,221.99,221.87,23.902374]
[1734187334503,20.0,221.99,221.88,0.12549]
[1734187334698,20.0,221.99,221.87,0.12549]
[1734187335315,1.6346,221.98,221.86,0.12549]
[1734187335907,1.6346,221.98,221.86,0.25098]
[1734187338230,1.6346,221.98,221.83,23.776884]
[1734187338417,1.6346,221.93,221.81,8.58111875]
[1734187339110,1.6346,221.93,221.82,8.58111875]
[1734187339296,1.6346,221.93,221.78,0.67599244]
[1734187339297,1.6346,221.93,221.81,8.58111875]
[1734187339497,1.6346,221.93,221.83,8.58111875]
[1734187339717,1.6346,221.93,221.84,8.58111875]
[1734187339918,1.6346,221.93,221.84,0.12549]
[1734187340222,1.6346,221.93,221.84,23.902374]
[1734187340604,1.6346,221.93,221.83,24.027864]
[1734187343123,1.6346,221.93,221.83,32.60898275]
[1734187347411,1.6346,221.93,221.85,24.027864]
[1734187348506,1.6346,221.93,221.85,32.60898275]
[1734187348911,1.6346,221.93,221.88,23.902374]
[1734187349107,6.3404,221.97,221.9,23.902374]
[1734187349411,1.6621,221.98,221.92,23.902374]
[1734187349709,1.6621,221.98,221.93,0.12549]
[1734187350125,1.6621,221.98,221.92,0.25098]
[1734187351126,1.6621,221.98,221.91,23.776884]
[1734187351309,1.6621,221.98,221.91,0.12549]
[1734187351633,1.6621,221.98,221.89,24.027864]
[1734187352527,1.6621,221.98,221.89,32.60898275]
[1734187352710,1.6621,221.98,221.91,24.027864]
[1734187354028,1.6621,221.98,221.9,24.027864]
[1734187354711,1.6621,221.98,221.9,0.12549]
[1734187355133,1.6621,221.98,221.89,23.902374]
[1734187355338,1.6621,221.98,221.88,0.12549]
[1734187355507,1.6621,221.98,221.88,0.25098]
[1734187355713,1.6621,221.98,221.88,0.12549]
[1734187356120,1.6621,221.98,221.89,0.25098]
[1734187357724,1.6621,221.98,221.91,0.12549]
[1734187358032,1.6621,221.98,221.91,24.027864]
[1734187359628,1.6621,221.98,221.9,24.027864]
[1734187360021,1.6621,221.98,221.9,0.12549]
[1734187360235,1.6621,221.98,221.89,0.12549]
[1734187360430,1.6621,221.98,221.89,0.25098]
[1734187360623,1.6621,221.98,221.89,0.12549]
[1734187361024,1.6621,221.98,221.84,28.58111875]
[1734187361638,1.6621,221.98,221.85,8.58111875]
[1734187362138,1.6621,221.98,221.86,0.25098]
[1734187363137,1.6621,221.98,221.86,24.027864]
[1734187364738,1.6621,221.98,221.84,32.48349275]
[1734187364937,1.6621,221.98,221.85,0.12549]
[1734187367644,1.6621,221.98,221.86,23.776884]
[1734187372558,1.6621,221.98,221.85,23.902374]
[1734187373519,20.0,221.94,221.84,0.25098]
[1734187376333,20.0,221.94,221.84,8.83209875]
[1734187376541,20.0,221.94,221.86,0.12549]
[1734187378463,20.0,221.94,221.84,23.902374]
[1734187380340,20.0,221.94,221.85,0.12549]
[1734187381545,20.0,221.94,221.85,8.70660875]
[1734187381742,20.0,221.94,221.87,0.12549]
[1734187382334,20.0,221.94,221.86,0.25098]
[1734187382741,6.478,221.97,221.88,0.12549]
[1734187383053,6.478,221.97,221.88,23.902374]
[1734187383245,6.478,221.97,221.88,32.48349275]
[1734187383954,1.6621,221.98,221.93,0.12549]
[1734187386743,1.6621,221.98,221.92,0.12549]
[1734187389670,6.0432,222.03,221.92,0.12549]
[1734187397266,6.0432,222.03,221.96,0.12549]
[1734187397444,6.0432,222.03,221.96,0.25098]
[1734187397879,1.5341,222.1,222.0,0.12549]
[1734187398661,1.5341,222.1,221.99,0.25098]
[1734187399239,20.0,222.09,221.99,8.83209875]
[1734187399456,20.0,222.09,222.01,0.12549]
[1734187400148,20.0,222.09,221.99,0.25098]
[1734187404056,20.0,222.09,221.99,0.12549]
[1734187404263,20.0,222.09,221.95,8.58111875]
[1734187404859,20.0,222.09,221.97,0.12549]
[1734187405354,20.0,222.09,222.0,0.12549]
[1734187405560,20.0,222.09,222.02,0.12549]
[1734187406447,20.0,222.09,222.0,24.027864]
[1734187407261,20.0,222.09,222.0,23.902374]
[1734187407859,1.5341,222.1,222.01,0.25098]
[1734187408050,1.5341,222.1,222.02,23.776884]
[1734187409545,1.5341,222.1,222.02,0.12549]
[1734187411085,1.5341,222.1,222.01,0.12549]
[1734187411260,1.5341,222.1,222.0,23.902374]
[1734187411652,1.5341,222.1,222.0,0.12549]
[1734187412669,1.5341,222.1,222.0,8.70660875]
[1734187412849,1.5341,222.1,222.01,23.776884]
[1734187414073,1.5341,222.1,222.0,23.902374]
[1734187414268,1.5341,222.1,222.0,32.48349275]
[1734187415657,20.0,222.09,222.0,23.776884]
[1734187416369,20.0,222.09,221.98,23.902374]
[1734187419554,20.0,222.09,221.97,24.027864]
[1734187420768,20.0,222.09,221.97,23.902374]
[1734187420969,20.0,222.09,221.96,0.12549]
[1734187421562,20.0,222.09,221.96,0.25098]
[1734187426275,20.0,222.09,221.96,8.83209875]
[1734187426675,20.0,222.09,221.97,23.776884]
[1734187431207,20.0,222.09,221.96,0.25098]
[1734187431208,20.0,222.09,221.96,32.60898275]
[1734187431392,20.0,222.09,221.96,8.83209875]
[1734187431573,20.0,222.09,221.97,23.776884]
[1734187432482,20.0,222.09,221.97,32.35800275]
[1734187434587,20.0,222.09,221.97,23.776884]
[1734187434786,20.0,222.09,221.97,32.35800275]
[1734187435607,20.0,222.08,221.97,32.35800275]
[1734187435809,20.0,222.08,221.97,23.776884]
[1734187436302,20.0,222.08,221.95,23.776884]
[1734187436889,20.0,222.08,221.96,0.12549]
[1734187438083,20.0,222.07,221.96,0.12549]
[1734187438801,20.0,222.07,221.97,8.58111875]
[1734187439096,20.0,222.07,221.98,23.776884]
[1734187441017,20.0,222.08,221.98,23.776884]
[1734187443483,20.0,222.07,221.97,23.776884]
[1734187446608,20.0,222.06,221.97,23.776884]
[1734187447992,20.0,222.06,221.91,20.0]
[1734187447993,7.8997,222.05,221.91,20.0]
[1734187448183,1.5915,222.01,221.83,7.882]
[1734187448407,6.3082,222.0,221.86,8.58111875]
[1734187448718,6.3082,222.0,221.85,8.58111875]
[1734187448920,10.74736572,222.0,221.86,0.12549]
[1734187449227,20.0,221.97,221.85,8.58111875]
[1734187450110,20.0,221.97,221.86,0.12549]
[1734187450607,20.0,221.97,221.86,24.027864]
[1734187452718,20.0,221.97,221.83,1.6638]
[1734187452719,1.5915,221.96,221.84,23.776884]
[1734187452914,1.5915,221.96,221.82,8.58111875]
[1734187453791,1.5915,221.96,221.83,8.58111875]
[1734187454100,1.5915,221.96,221.84,23.776884]
[1734187455318,1.5915,221.96,221.85,0.12549]
[1734187455513,1.5915,221.96,221.87,23.776884]
[1734187455917,1.5915,221.96,221.86,23.902374]
[1734187456618,1.5915,221.96,221.86,0.12549]
[1734187458207,1.5915,221.96,221.85,23.776884]
[1734187459616,1.5915,221.96,221.84,23.902374]
[1734187459819,1.5915,221.96,221.72,16.32871875]
[1734187459820,6.3424,221.9,221.72,16.32871875]
[1734187460015,6.3424,221.9,221.71,8.58111875]
[1734187460016,20.0,221.87,221.71,8.58111875]
[1734187460217,20.0,221.87,221.67,5.0]
[1734187460415,20.0,221.87,221.73,0.12549]
[1734187460608,20.0,221.87,221.72,8.58111875]
[1734187461414,20.0,221.87,221.73,32.48349275]
[1734187462233,20.0,221.87,221.74,0.12549]
[1734187470032,1.5484,221.86,221.73,23.776884]
[1734187470224,1.5484,221.81,221.64,0.67634869]
[1734187470420,1.5484,221.81,221.67,8.58111875]
[1734187470624,1.5484,221.81,221.64,0.67634869]
[1734187470827,1.5484,221.81,221.66,8.58111875]
[1734187472120,1.5484,221.81,221.67,23.776884]
[1734187473143,1.5484,221.81,221.66,23.902374]
[1734187473325,20.0,221.77,221.66,23.902374]
[1734187478840,20.0,221.77,221.68,0.12549]
[1734187479017,20.0,221.77,221.68,8.58111875]
[1734187479634,20.0,221.77,221.67,8.83209875]
[1734187479943,20.0,221.77,221.68,23.776884]
[1734187480944,6.1797,221.8,221.69,8.83209875]
[1734187481129,6.1797,221.8,221.73,23.776884]
[1734187481548,6.1797,221.8,221.72,24.027864]
[1734187487142,6.1797,221.8,221.72,23.776884]
[1734187487341,6.1797,221.8,221.7,23.776884]
[1734187488037,6.1797,221.8,221.7,32.35800275]
[1734187489846,6.1797,221.8,221.7,23.776884]
[1734187490054,6.1797,221.8,221.69,24.027864]
[1734187493650,6.1797,221.8,221.68,24.027864]
[1734187496253,6.1797,221.8,221.68,32.60898275]
[1734187498450,6.1797,221.8,221.69,8.58111875]
[1734187498651,6.1797,221.8,221.7,23.776884]
[1734187502266,6.1797,221.8,221.71,0.25098]
[1734187503847,6.1797,221.8,221.7,23.776884]
[1734187504049,6.1797,221.8,221.69,23.776884]
[1734187504355,6.1797,221.8,221.68,23.902374]
[1734187504754,6.1797,221.8,221.69,0.12549]
[1734187505562,6.1797,221.8,221.7,0.12549]
[1734187505871,6.1797,221.8,221.71,0.12549]
[1734187510254,6.1797,221.8,221.7,23.776884]
[1734187510473,6.1797,221.8,221.64,11.279]
[1734187510474,6.1797,221.8,221.68,23.902374]
[1734187510763,6.1797,221.8,221.69,0.12549]
[1734187514953,6.1797,221.8,221.72,0.12549]
[1734187518865,6.1797,221.8,221.68,8.58111875]
[1734187519064,6.1797,221.8,221.66,9.25744692]
[1734187519271,6.1797,221.8,221.66,8.58111875]
[1734187521061,6.1797,221.8,221.66,24.027864]
[1734187521262,20.0,221.77,221.64,23.776884]
[1734187521467,20.0,221.77,221.64,0.12549]
[1734187521866,20.0,221.77,221.64,0.25098]
[1734187523078,20.0,221.77,221.64,24.027864]
[1734187523459,20.0,221.77,221.65,0.25098]
[1734187523675,20.0,221.77,221.65,24.027864]
[1734187524669,20.0,221.77,221.65,0.25098]
[1734187524868,20.0,221.77,221.65,24.027864]
[1734187530377,20.0,221.77,221.67,0.12549]
[1734187530570,20.0,221.77,221.67,0.25098]
[1734187532062,20.0,221.77,221.65,23.776884]
[1734187532369,20.0,221.77,221.65,24.027864]
[1734187533563,20.0,221.77,221.65,8.83209875]
[1734187534164,20.0,221.77,221.66,23.776884]
[1734187536683,20.0,221.77,221.65,0.12549]
[1734187537265,20.0,221.77,221.64,0.12549]
[1734187537266,20.0,221.77,221.64,0.25098]
[1734187539577,20.0,221.76,221.64,0.25098]
[1734187540887,1.6,221.75,221.64,0.25098]
[1734187542071,20.0,221.76,221.58,4.96777793]
[1734187542072,1.6,221.73,221.58,4.96777793]
[1734187542273,20.0,221.71,221.57,8.58111875]
[1734187542890,20.0,221.71,221.58,8.70660875]
[1734187543068,20.0,221.71,221.58,9.38334988]
[1734187543268,20.0,221.71,221.58,9.25785988]
[1734187543481,20.0,221.71,221.59,0.12549]
[1734187543680,20.0,221.71,221.59,24.027864]
[1734187545972,1.6,221.7,221.58,23.776884]
[1734187546182,6.3739,221.69,221.58,23.776884]
[1734187546390,6.3739,221.69,221.57,24.027864]
[1734187548800,6.3739,221.69,221.57,0.12549]
[1734187548992,6.3739,221.69,221.57,23.902374]
[1734187550989,6.3739,221.69,221.57,23.776884]
[1734187551199,20.0,221.66,221.52,8.58111875]
[1734187551499,1.6,221.65,221.52,0.12549]
[1734187551704,1.6,221.65,221.52,8.70660875]
[1734187552002,1.6,221.65,221.52,8.58111875]
[1734187552809,1.6,221.65,221.53,23.776884]
[1734187553923,1.6,221.65,221.55,8.58111875]
[1734187554087,1.6,221.65,221.57,23.776884]
[1734187557383,1.6,221.65,221.56,24.027864]
[1734187557778,1.6,221.65,221.57,0.12549]
[1734187559589,1.6,221.65,221.57,8.70660875]
[1734187560198,1.6,221.65,221.58,23.776884]
[1734187561091,1.6,221.65,221.57,23.902374]
[1734187564117,1.6,221.65,221.56,24.027864]
[1734187566900,1.6,221.65,221.56,32.60898275]
[1734187567705,1.6,221.65,221.58,24.027864]
[1734187568719,1.6,221.65,221.57,24.027864]
[1734187568920,1.6,221.65,221.57,0.25098]
[1734187570523,1.6,221.65,221.57,0.12549]
[1734187570728,1.6,221.65,221.56,23.776884]
[1734187571018,1.6,221.65,221.5,8.58111875]
[1734187571202,6.2645,221.64,221.51,0.12549]
[1734187571609,6.2645,221.64,221.5,8.58111875]
[1734187572206,6.2645,221.64,221.48,0.12549]
[1734187572402,6.2645,221.64,221.48,0.25098]
[1734187572614,6.2645,221.64,221.49,8.58111875]
[1734187573020,20.0,221.61,221.5,24.027864]
[1734187573221,20.0,221.61,221.5,23.902374]
[1734187573608,20.0,221.61,221.48,32.35800275]
[1734187573811,20.0,221.61,221.49,0.12549]
[1734187574001,1.6104,221.6,221.49,0.12549]
[1734187574206,1.6104,221.6,221.49,8.70660875]
[1734187574610,1.6104,221.6,221.51,0.12549]
[1734187576730,1.6104,221.6,221.49,24.027864]
[1734187578031,1.6104,221.6,221.49,0.12549]
[1734187579224,1.6104,221.6,221.48,23.902374]
[1734187580029,1.6104,221.6,221.48,32.48349275]
[1734187580330,1.6104,221.6,221.5,0.12549]
[1734187580504,1.6104,221.6,221.5,23.902374]
[1734187582510,1.6104,221.6,221.49,0.25098]
[1734187591635,1.6104,221.6,221.48,23.776884]
[1734187591847,6.2498,221.59,221.46,0.5226071]
[1734187592745,6.2498,221.59,221.47,0.12549]
[1734187593108,6.2498,221.59,221.47,23.902374]
[1734187597930,6.2498,221.59,221.49,23.902374]
[1734187599540,6.2498,221.59,221.48,24.027864]
[1734187601624,6.2498,221.59,221.47,24.027864]
[1734187604323,1.6054,221.55,221.46,0.5226071]
[1734187610143,6.5163,221.54,221.46,0.5226071]
[1734187614481,1.6054,221.55,221.47,23.902374]
[1734187614838,1.6054,221.55,221.47,32.48349275]
[1734187615539,1.6054,221.55,221.48,8.58111875]
[1734187615734,1.6054,221.55,221.49,24.027864]
[1734187616360,20.0,221.57,221.49,24.027864]
[1734187617058,1.5514,221.6,221.53,0.12549]
[1734187617364,1.5514,221.6,221.53,24.027864]
[1734187617557,1.5514,221.6,221.53,0.25098]
[1734187619561,1.5514,221.6,221.52,23.776884]
[1734187619754,1.5514,221.6,221.5,23.776884]
[1734187619965,6.0782,221.65,221.55,0.12549]
[1734187620139,7.6296,221.65,221.57,23.902374]
[1734187620962,7.6296,221.65,221.57,0.12549]
[1734187621154,7.6296,221.65,221.56,23.902374]
[1734187622754,7.6296,221.65,221.56,32.48349275]
[1734187623545,7.6296,221.65,221.56,23.902374]
[1734187624566,7.6296,221.65,221.55,0.12549]
[1734187625847,7.6296,221.65,221.54,0.12549]
[1734187626065,7.6296,221.65,221.53,0.12549]
[1734187626387,7.6296,221.65,221.55,0.12549]
[1734187628083,7.6296,221.65,221.54,0.12549]
[1734187629074,7.6296,221.65,221.53,0.12549]
[1734187630151,7.6296,221.65,221.54,23.902374]
[1734187630649,7.6296,221.65,221.54,8.70660875]
[1734187631059,7.6296,221.65,221.55,23.776884]
[1734187631265,7.6296,221.65,221.56,0.25098]
[1734187635577,1.5514,221.65,221.56,8.83209875]
[1734187635765,1.5514,221.65,221.58,8.83209875]
[1734187635969,1.5514,221.65,221.6,0.12549]
[1734187636360,20.0,221.68,221.6,0.12549]
[1734187638575,20.0,221.68,221.6,0.25098]
[1734187640075,1.5015,221.7,221.6,0.25098]
[1734187640661,1.5015,221.7,221.61,23.776884]
[1734187640859,1.5015,221.7,221.62,0.12549]
[1734187642077,8.0438,221.76,221.64,24.027864]
[1734187642774,8.0438,221.76,221.64,32.60898275]
[1734187643370,8.0438,221.76,221.66,0.12549]
[1734187643572,8.0438,221.76,221.66,23.902374]
[1734187644680,8.0438,221.76,221.65,8.58111875]
[1734187644681,8.0438,221.76,221.65,23.902374]
[1734187645076,8.0438,221.76,221.66,0.12549]
[1734187648479,8.0438,221.76,221.6,20.0]